[Event "Titled Tuesday Blitz November 15 Late 2022"]
[White "Harish, Neeraj"]
[Black "Forgacs, Attila Jr."]
[WhiteFideId "30958130"]
[BlackFideId "773654"]
[WhiteElo "1815"]
[BlackElo "2168"]
[Result "0-1"]
[Round "04"]
[TimeControl "180+1"]
[Date "2022.11.16"]
[WhiteClock "0:00:04"]
[BlackClock "0:00:25"]

1. e4 {[%clk 0:02:54]}  e5 {[%clk 0:03:00]} 2. Nf3 {[%clk 0:02:53]}  Nc6 {[%clk 0:03:00]} 3. Bc4 {[%clk 0:02:53]}  Nf6 {[%clk 0:02:59]} 4. d3 {[%clk 0:02:53]}  h6 {[%clk 0:02:59]} 5. O-O {[%clk 0:02:52]}  d6 {[%clk 0:03:00]} 6. c3 {[%clk 0:02:51]}  g5 {[%clk 0:03:00]} 7. Re1 {[%clk 0:02:34]}  Bg7 {[%clk 0:03:00]} 8. d4 {[%clk 0:02:27]}  g4 {[%clk 0:02:50]} 9. dxe5 {[%clk 0:02:23]}  gxf3 {[%clk 0:02:17]} 10. exf6 {[%clk 0:02:22]}  Qxf6 {[%clk 0:02:18]} 11. Qxf3 {[%clk 0:02:18]}  Qxf3 {[%clk 0:02:18]} 12. gxf3 {[%clk 0:02:19]}  Ne5 {[%clk 0:02:19]} 13. Be2 {[%clk 0:02:18]}  Rg8 {[%clk 0:02:19]} 14. Bf4 {[%clk 0:02:13]}  Bh3 {[%clk 0:01:44]} 15. Bg3 {[%clk 0:02:04]}  h5 {[%clk 0:01:42]} 16. f4 {[%clk 0:02:03]}  h4 {[%clk 0:01:33]} 17. fxe5 {[%clk 0:02:01]}  Bxe5 {[%clk 0:01:34]} 18. Bf1 {[%clk 0:01:58]}  Be6 {[%clk 0:01:21]} 19. Nd2 {[%clk 0:01:44]}  hxg3 {[%clk 0:01:21]} 20. hxg3 {[%clk 0:01:43]}  O-O-O {[%clk 0:01:22]} 21. Nc4 {[%clk 0:01:40]}  Bf6 {[%clk 0:01:16]} 22. e5 {[%clk 0:01:33]}  dxe5 {[%clk 0:01:06]} 23. Nxe5 {[%clk 0:01:34]}  Rd2 {[%clk 0:01:03]} 24. Nc4 {[%clk 0:01:21]}  Bxc4 {[%clk 0:00:56]} 25. Bxc4 {[%clk 0:01:22]}  Rxb2 {[%clk 0:00:56]} 26. Bxf7 {[%clk 0:01:19]}  Rf8 {[%clk 0:00:56]} 27. Be6+ {[%clk 0:01:19]}  Kb8 {[%clk 0:00:55]} 28. f4 {[%clk 0:00:51]}  Bxc3 {[%clk 0:00:53]} 29. Red1 {[%clk 0:00:50]}  b5 {[%clk 0:00:43]} 30. Rac1 {[%clk 0:00:42]}  b4 {[%clk 0:00:39]} 31. f5 {[%clk 0:00:35]}  Rh8 {[%clk 0:00:34]} 32. Rd7 {[%clk 0:00:11]}  Bd2 {[%clk 0:00:24]} 33. Rcxc7 {[%clk 0:00:04]}  Be3+ {[%clk 0:00:25]} 0-1


[Site "https://www.chess.com"]

[Event "Titled Tuesday Blitz November 15 Late 2022"]
[White "Harshal, Shahi"]
[Black "Dudzinski, Pawel"]
[WhiteFideId "5048257"]
[BlackFideId "1117890"]
[WhiteElo "2054"]
[BlackElo "2086"]
[Result "1/2-1/2"]
[Round "04"]
[TimeControl "180+1"]
[Date "2022.11.16"]
[WhiteClock "0:00:06"]
[BlackClock "0:00:03"]

1. e4 {[%clk 0:03:00]}  c6 {[%clk 0:02:59]} 2. d4 {[%clk 0:03:00]}  d5 {[%clk 0:03:00]} 3. exd5 {[%clk 0:03:01]}  cxd5 {[%clk 0:03:01]} 4. Nf3 {[%clk 0:03:01]}  Nf6 {[%clk 0:03:02]} 5. Bd3 {[%clk 0:03:01]}  g6 {[%clk 0:03:02]} 6. O-O {[%clk 0:02:59]}  Bg7 {[%clk 0:03:02]} 7. c3 {[%clk 0:02:58]}  O-O {[%clk 0:03:02]} 8. Bf4 {[%clk 0:02:57]}  Bf5 {[%clk 0:03:02]} 9. h3 {[%clk 0:02:54]}  Nc6 {[%clk 0:02:59]} 10. Re1 {[%clk 0:02:42]}  a6 {[%clk 0:02:57]} 11. Qe2 {[%clk 0:02:22]}  Bxd3 {[%clk 0:02:54]} 12. Qxd3 {[%clk 0:02:22]}  b5 {[%clk 0:02:53]} 13. Nbd2 {[%clk 0:02:18]}  b4 {[%clk 0:02:52]} 14. Nb3 {[%clk 0:02:10]}  bxc3 {[%clk 0:02:48]} 15. bxc3 {[%clk 0:02:11]}  e6 {[%clk 0:02:37]} 16. Rab1 {[%clk 0:02:05]}  Nd7 {[%clk 0:02:34]} 17. Rec1 {[%clk 0:01:33]}  Na5 {[%clk 0:02:29]} 18. Nfd2 {[%clk 0:01:30]}  e5 {[%clk 0:01:59]} 19. dxe5 {[%clk 0:01:16]}  Nxe5 {[%clk 0:02:00]} 20. Qg3 {[%clk 0:01:15]}  Nxb3 {[%clk 0:01:51]} 21. Rxb3 {[%clk 0:01:02]}  Nc4 {[%clk 0:01:44]} 22. Rd1 {[%clk 0:00:56]}  Nxd2 {[%clk 0:01:39]} 23. Rxd2 {[%clk 0:00:57]}  Re8 {[%clk 0:01:37]} 24. Qf3 {[%clk 0:00:50]}  Re1+ {[%clk 0:01:19]} 25. Kh2 {[%clk 0:00:50]}  Re4 {[%clk 0:01:07]} 26. Rb7 {[%clk 0:00:37]}  Qf6 {[%clk 0:00:56]} 27. Bg3 {[%clk 0:00:22]}  Qe6 {[%clk 0:00:33]} 28. Rdb2 {[%clk 0:00:10]}  Be5 {[%clk 0:00:22]} 29. R2b6 {[%clk 0:00:09]}  Qe8 {[%clk 0:00:19]} 30. Bxe5 {[%clk 0:00:06]}  Qxe5+ {[%clk 0:00:20]} 31. g3 {[%clk 0:00:06]}  f5 {[%clk 0:00:14]} 32. Rd7 {[%clk 0:00:03]}  Rc8 {[%clk 0:00:06]} 33. Rbb7 {[%clk 0:00:03]}  Rxc3 {[%clk 0:00:06]} 34. Rg7+ {[%clk 0:00:04]}  Kf8 {[%clk 0:00:05]} 35. Rbf7+ {[%clk 0:00:03]}  Ke8 {[%clk 0:00:05]} 36. Re7+ {[%clk 0:00:04]}  Kf8 {[%clk 0:00:04]} 37. Rgf7+ {[%clk 0:00:04]}  Kg8 {[%clk 0:00:04]} 38. Rg7+ {[%clk 0:00:05]}  Kf8 {[%clk 0:00:05]} 39. Rgf7+ {[%clk 0:00:05]}  Kg8 {[%clk 0:00:05]} 40. Qd1 {[%clk 0:00:05]}  Qxe7 {[%clk 0:00:05]} 41. Rxe7 {[%clk 0:00:04]}  Rxe7 {[%clk 0:00:06]} 42. Qxd5+ {[%clk 0:00:05]}  Kf8 {[%clk 0:00:04]} 43. Qd8+ {[%clk 0:00:05]}  Kf7 {[%clk 0:00:04]} 44. Qd5+ {[%clk 0:00:05]}  Kf8 {[%clk 0:00:03]} 45. Qd8+ {[%clk 0:00:05]}  Kf7 {[%clk 0:00:03]} 46. Qd5+ {[%clk 0:00:06]}  Kf8 {[%clk 0:00:03]} 1/2-1/2


[Site "https://www.chess.com"]

[Event "Titled Tuesday Blitz November 15 Late 2022"]
[White "Hristodoulou, Panagiotis"]
[Black "Avila Rodriguez, Joshua Ad"]
[WhiteFideId "4214340"]
[BlackFideId "5126444"]
[WhiteElo "2272"]
[BlackElo "2125"]
[Result "0-1"]
[Round "04"]
[TimeControl "180+1"]
[Date "2022.11.16"]
[WhiteClock "0:00:49"]
[BlackClock "0:00:05"]

1. d4 {[%clk 0:02:50]}  Nf6 {[%clk 0:02:59]} 2. Nf3 {[%clk 0:02:49]}  d5 {[%clk 0:02:59]} 3. Bg5 {[%clk 0:02:39]}  Ne4 {[%clk 0:02:55]} 4. Bf4 {[%clk 0:02:38]}  c5 {[%clk 0:02:49]} 5. e3 {[%clk 0:02:37]}  Qb6 {[%clk 0:02:30]} 6. Nc3 {[%clk 0:02:34]}  Nxc3 {[%clk 0:02:27]} 7. bxc3 {[%clk 0:02:34]}  e6 {[%clk 0:02:17]} 8. Be2 {[%clk 0:02:33]}  Nc6 {[%clk 0:02:13]} 9. O-O {[%clk 0:02:33]}  c4 {[%clk 0:02:08]} 10. e4 {[%clk 0:02:32]}  Be7 {[%clk 0:02:08]} 11. exd5 {[%clk 0:02:31]}  exd5 {[%clk 0:02:09]} 12. Re1 {[%clk 0:02:29]}  O-O {[%clk 0:02:08]} 13. Ne5 {[%clk 0:02:29]}  Be6 {[%clk 0:01:57]} 14. Bf3 {[%clk 0:02:23]}  Nxe5 {[%clk 0:01:53]} 15. Bxe5 {[%clk 0:02:21]}  Rfe8 {[%clk 0:01:50]} 16. Qd2 {[%clk 0:02:21]}  Qa5 {[%clk 0:01:42]} 17. a4 {[%clk 0:01:58]}  Rad8 {[%clk 0:01:10]} 18. Reb1 {[%clk 0:01:51]}  Rd7 {[%clk 0:01:10]} 19. Rb5 {[%clk 0:01:50]}  Qd8 {[%clk 0:01:07]} 20. Rab1 {[%clk 0:01:50]}  Qc8 {[%clk 0:01:07]} 21. Qf4 {[%clk 0:01:49]}  f6 {[%clk 0:00:49]} 22. Bg4 {[%clk 0:01:46]}  Bxg4 {[%clk 0:00:47]} 23. Qxg4 {[%clk 0:01:47]}  fxe5 {[%clk 0:00:46]} 24. dxe5 {[%clk 0:01:47]}  Bd8 {[%clk 0:00:38]} 25. f4 {[%clk 0:01:45]}  Bb6+ {[%clk 0:00:34]} 26. Kh1 {[%clk 0:01:44]}  Rf7 {[%clk 0:00:33]} 27. Qf3 {[%clk 0:01:18]}  Qf5 {[%clk 0:00:30]} 28. Rf1 {[%clk 0:01:11]}  d4 {[%clk 0:00:24]} 29. a5 {[%clk 0:00:57]}  Bc7 {[%clk 0:00:14]} 30. cxd4 {[%clk 0:00:57]}  b6 {[%clk 0:00:13]} 31. axb6 {[%clk 0:00:56]}  Bxb6 {[%clk 0:00:13]} 32. c3 {[%clk 0:00:57]}  Qd3 {[%clk 0:00:13]} 33. Qxd3 {[%clk 0:00:56]}  cxd3 {[%clk 0:00:14]} 34. g3 {[%clk 0:00:57]}  Rc8 {[%clk 0:00:14]} 35. Rb3 {[%clk 0:00:57]}  Rfc7 {[%clk 0:00:12]} 36. Rd1 {[%clk 0:00:57]}  Rxc3 {[%clk 0:00:12]} 37. Rxd3 {[%clk 0:00:57]}  Rxb3 {[%clk 0:00:12]} 38. Rxb3 {[%clk 0:00:57]}  Bxd4 {[%clk 0:00:12]} 39. Kg2 {[%clk 0:00:57]}  Ra8 {[%clk 0:00:09]} 40. Kf3 {[%clk 0:00:57]}  a5 {[%clk 0:00:09]} 41. Ke4 {[%clk 0:00:57]}  Bc5 {[%clk 0:00:09]} 42. Kd5 {[%clk 0:00:57]}  Bf8 {[%clk 0:00:08]} 43. f5 {[%clk 0:00:57]}  a4 {[%clk 0:00:09]} 44. Rb2 {[%clk 0:00:58]}  a3 {[%clk 0:00:09]} 45. Ra2 {[%clk 0:00:58]}  Ra5+ {[%clk 0:00:08]} 46. Kd4 {[%clk 0:00:57]}  Kf7 {[%clk 0:00:08]} 47. g4 {[%clk 0:00:57]}  Be7 {[%clk 0:00:07]} 48. Ke4 {[%clk 0:00:54]}  h6 {[%clk 0:00:07]} 49. e6+ {[%clk 0:00:55]}  Kf6 {[%clk 0:00:06]} 50. h4 {[%clk 0:00:54]}  Ra4+ {[%clk 0:00:06]} 51. Kf3 {[%clk 0:00:54]}  Bd6 {[%clk 0:00:06]} 52. Rd2 {[%clk 0:00:48]}  a2 {[%clk 0:00:04]} 53. Rxd6 {[%clk 0:00:48]}  a1=Q {[%clk 0:00:04]} 54. g5+ {[%clk 0:00:49]}  hxg5 {[%clk 0:00:03]} 55. hxg5+ {[%clk 0:00:50]}  Kxg5 {[%clk 0:00:04]} 56. e7 {[%clk 0:00:50]}  Qa3+ {[%clk 0:00:04]} 57. Rd3 {[%clk 0:00:49]}  Qxd3+ {[%clk 0:00:04]} 58. Kf2 {[%clk 0:00:49]}  Ra2+ {[%clk 0:00:04]} 59. Ke1 {[%clk 0:00:49]}  Qb1# {[%clk 0:00:05]} 0-1


[Site "https://www.chess.com"]

[Event "Titled Tuesday Blitz November 15 Late 2022"]
[White "Indjic, Aleksandar"]
[Black "Kobo, Ori"]
[WhiteFideId "911925"]
[BlackFideId "2812320"]
[WhiteElo "2592"]
[BlackElo "2447"]
[Result "1-0"]
[Round "04"]
[TimeControl "180+1"]
[Date "2022.11.15"]
[WhiteClock "0:00:04"]
[BlackClock "0:00:04"]

1. d4 {[%clk 0:03:00]}  Nf6 {[%clk 0:02:59]} 2. c4 {[%clk 0:03:01]}  e6 {[%clk 0:03:00]} 3. Nc3 {[%clk 0:03:00]}  Bb4 {[%clk 0:02:59]} 4. Qc2 {[%clk 0:02:58]}  d5 {[%clk 0:02:59]} 5. cxd5 {[%clk 0:02:56]}  exd5 {[%clk 0:03:00]} 6. Bg5 {[%clk 0:02:56]}  h6 {[%clk 0:02:59]} 7. Bh4 {[%clk 0:02:54]}  g5 {[%clk 0:02:57]} 8. Bg3 {[%clk 0:02:54]}  Nc6 {[%clk 0:02:57]} 9. e3 {[%clk 0:02:55]}  h5 {[%clk 0:02:57]} 10. Bd3 {[%clk 0:02:55]}  h4 {[%clk 0:02:48]} 11. Be5 {[%clk 0:02:54]}  Rh6 {[%clk 0:02:32]} 12. h3 {[%clk 0:01:51]}  Qe7 {[%clk 0:02:28]} 13. Bxf6 {[%clk 0:01:45]}  Rxf6 {[%clk 0:02:28]} 14. Ne2 {[%clk 0:01:43]}  Be6 {[%clk 0:02:18]} 15. a3 {[%clk 0:01:42]}  Bd6 {[%clk 0:02:13]} 16. Nb5 {[%clk 0:01:33]}  a6 {[%clk 0:01:54]} 17. Nxd6+ {[%clk 0:01:32]}  Qxd6 {[%clk 0:01:54]} 18. Nc3 {[%clk 0:01:32]}  O-O-O {[%clk 0:01:52]} 19. O-O-O {[%clk 0:01:32]}  Kb8 {[%clk 0:01:48]} 20. Kb1 {[%clk 0:01:32]}  Rh6 {[%clk 0:01:47]} 21. Na4 {[%clk 0:01:19]}  Bc8 {[%clk 0:01:31]} 22. Nc5 {[%clk 0:01:19]}  Ka7 {[%clk 0:01:29]} 23. Rc1 {[%clk 0:01:19]}  Rg8 {[%clk 0:01:16]} 24. Qa4 {[%clk 0:00:39]}  Ne7 {[%clk 0:01:04]} 25. Rc3 {[%clk 0:00:31]}  g4 {[%clk 0:00:53]} 26. Rhc1 {[%clk 0:00:25]}  c6 {[%clk 0:00:49]} 27. Rb3 {[%clk 0:00:20]}  Qc7 {[%clk 0:00:40]} 28. Ka2 {[%clk 0:00:17]}  Rf6 {[%clk 0:00:37]} 29. Rc2 {[%clk 0:00:16]}  gxh3 {[%clk 0:00:37]} 30. gxh3 {[%clk 0:00:17]}  Rg2 {[%clk 0:00:37]} 31. f4 {[%clk 0:00:14]}  Rg3 {[%clk 0:00:36]} 32. Be2 {[%clk 0:00:13]}  Rxh3 {[%clk 0:00:35]} 33. Qb4 {[%clk 0:00:12]}  Rg3 {[%clk 0:00:29]} 34. Na4 {[%clk 0:00:12]}  Rg2 {[%clk 0:00:14]} 35. Nb6 {[%clk 0:00:11]}  h3 {[%clk 0:00:12]} 36. Bxa6 {[%clk 0:00:10]}  Rxc2 {[%clk 0:00:10]} 37. Bd3 {[%clk 0:00:09]}  Rxb2+ {[%clk 0:00:03]} 38. Rxb2 {[%clk 0:00:09]}  Kb8 {[%clk 0:00:04]} 39. Qa5 {[%clk 0:00:09]}  Qd6 {[%clk 0:00:04]} 40. a4 {[%clk 0:00:07]}  h2 {[%clk 0:00:03]} 41. Rxh2 {[%clk 0:00:07]}  Rh6 {[%clk 0:00:03]} 42. Rb2 {[%clk 0:00:07]}  Rh3 {[%clk 0:00:03]} 43. Qa8+ {[%clk 0:00:06]}  Kc7 {[%clk 0:00:03]} 44. Qa5 {[%clk 0:00:07]}  Kb8 {[%clk 0:00:02]} 45. Qa8+ {[%clk 0:00:03]}  Kc7 {[%clk 0:00:03]} 46. Nxc8 {[%clk 0:00:03]}  Nxc8 {[%clk 0:00:04]} 47. Rxb7+ {[%clk 0:00:03]}  Kd8 {[%clk 0:00:04]} 48. Bf5 {[%clk 0:00:03]}  Rh2+ {[%clk 0:00:04]} 49. Kb3 {[%clk 0:00:04]} 1-0


[Site "https://www.chess.com"]

[Event "Titled Tuesday Blitz November 15 Late 2022"]
[White "Jarmula, Lukasz"]
[Black "Reprintsev, Alexander"]
[WhiteFideId "1160664"]
[BlackFideId "14100541"]
[WhiteElo "2357"]
[BlackElo "2230"]
[Result "1-0"]
[Round "04"]
[TimeControl "180+1"]
[Date "2022.11.16"]
[WhiteClock "0:00:46"]
[BlackClock "0:00:53"]

1. b3 {[%clk 0:03:00]}  d5 {[%clk 0:02:50]} 2. Bb2 {[%clk 0:03:00]}  Bf5 {[%clk 0:02:49]} 3. d3 {[%clk 0:02:59]}  Nc6 {[%clk 0:02:45]} 4. Nd2 {[%clk 0:02:59]}  d4 {[%clk 0:02:41]} 5. g3 {[%clk 0:02:55]}  e5 {[%clk 0:02:38]} 6. Bg2 {[%clk 0:02:55]}  Bb4 {[%clk 0:02:37]} 7. Nf3 {[%clk 0:02:55]}  Nf6 {[%clk 0:02:30]} 8. O-O {[%clk 0:02:54]}  O-O {[%clk 0:02:30]} 9. a3 {[%clk 0:02:54]}  Ba5 {[%clk 0:02:16]} 10. b4 {[%clk 0:02:54]}  Bb6 {[%clk 0:02:14]} 11. Nc4 {[%clk 0:02:54]}  e4 {[%clk 0:02:09]} 12. dxe4 {[%clk 0:02:51]}  Bxe4 {[%clk 0:02:04]} 13. b5 {[%clk 0:02:48]}  Bxf3 {[%clk 0:02:02]} 14. Bxf3 {[%clk 0:02:47]}  Na5 {[%clk 0:01:58]} 15. Nxa5 {[%clk 0:02:46]}  Bxa5 {[%clk 0:01:57]} 16. Qxd4 {[%clk 0:02:47]}  Qc8 {[%clk 0:01:50]} 17. Rad1 {[%clk 0:02:36]}  Bb6 {[%clk 0:01:46]} 18. Qf4 {[%clk 0:02:35]}  Ne8 {[%clk 0:01:40]} 19. Bg4 {[%clk 0:02:31]}  Qb8 {[%clk 0:01:36]} 20. Bd7 {[%clk 0:02:19]}  a6 {[%clk 0:01:33]} 21. Qg5 {[%clk 0:02:12]}  h6 {[%clk 0:01:27]} 22. Qg4 {[%clk 0:02:09]}  f5 {[%clk 0:01:23]} 23. Qg6 {[%clk 0:02:04]}  Nf6 {[%clk 0:01:20]} 24. Be6+ {[%clk 0:01:59]}  Kh8 {[%clk 0:01:19]} 25. Bxf5 {[%clk 0:01:56]}  Qe8 {[%clk 0:01:19]} 26. bxa6 {[%clk 0:01:48]}  Qxg6 {[%clk 0:01:17]} 27. Bxg6 {[%clk 0:01:48]}  Rxa6 {[%clk 0:01:18]} 28. e3 {[%clk 0:01:47]}  c6 {[%clk 0:01:13]} 29. h4 {[%clk 0:01:46]}  Bd8 {[%clk 0:01:08]} 30. h5 {[%clk 0:01:45]}  Nd5 {[%clk 0:01:06]} 31. c4 {[%clk 0:01:44]}  Nb6 {[%clk 0:01:05]} 32. c5 {[%clk 0:01:37]}  Nd5 {[%clk 0:01:05]} 33. e4 {[%clk 0:01:37]}  Bf6 {[%clk 0:01:02]} 34. exd5 {[%clk 0:01:35]}  Bxb2 {[%clk 0:01:02]} 35. d6 {[%clk 0:01:32]}  Bxa3 {[%clk 0:01:02]} 36. d7 {[%clk 0:01:33]}  Raa8 {[%clk 0:01:02]} 37. Rfe1 {[%clk 0:01:06]}  Bxc5 {[%clk 0:00:55]} 38. Re8 {[%clk 0:01:06]}  Bb6 {[%clk 0:00:55]} 39. Rd2 {[%clk 0:00:48]}  Rd8 {[%clk 0:00:53]} 40. Rde2 {[%clk 0:00:46]} 1-0


[Site "https://www.chess.com"]

[Event "Titled Tuesday Blitz November 15 Late 2022"]
[White "Jarocka, Liwia"]
[Black "Zhigalko, Sergei"]
[WhiteFideId "21807558"]
[BlackFideId "13502956"]
[WhiteElo "1989"]
[BlackElo "2662"]
[Result "0-1"]
[Round "04"]
[TimeControl "180+1"]
[Date "2022.11.15"]
[WhiteClock "0:01:16"]
[BlackClock "0:01:45"]

1. e4 {[%clk 0:03:00]}  c5 {[%clk 0:02:59]} 2. Nf3 {[%clk 0:03:01]}  Nc6 {[%clk 0:02:59]} 3. d4 {[%clk 0:03:01]}  cxd4 {[%clk 0:02:59]} 4. Nxd4 {[%clk 0:03:02]}  Nf6 {[%clk 0:02:59]} 5. Nc3 {[%clk 0:03:02]}  e5 {[%clk 0:02:59]} 6. Ndb5 {[%clk 0:03:02]}  d6 {[%clk 0:02:59]} 7. Bg5 {[%clk 0:03:01]}  a6 {[%clk 0:03:00]} 8. Na3 {[%clk 0:03:01]}  b5 {[%clk 0:03:00]} 9. Nd5 {[%clk 0:03:01]}  Be7 {[%clk 0:03:00]} 10. Bxf6 {[%clk 0:03:01]}  Bxf6 {[%clk 0:03:00]} 11. c4 {[%clk 0:03:01]}  b4 {[%clk 0:03:00]} 12. Nc2 {[%clk 0:03:02]}  O-O {[%clk 0:03:00]} 13. g3 {[%clk 0:03:01]}  a5 {[%clk 0:03:00]} 14. Bg2 {[%clk 0:03:01]}  Bg5 {[%clk 0:02:59]} 15. h4 {[%clk 0:02:59]}  Bh6 {[%clk 0:02:59]} 16. O-O {[%clk 0:02:59]}  Be6 {[%clk 0:02:53]} 17. b3 {[%clk 0:02:58]}  Rb8 {[%clk 0:02:51]} 18. Nce3 {[%clk 0:02:57]}  g6 {[%clk 0:02:42]} 19. h5 {[%clk 0:02:49]}  Nd4 {[%clk 0:02:30]} 20. Nc2 {[%clk 0:01:42]}  Nxc2 {[%clk 0:02:18]} 21. Qxc2 {[%clk 0:01:42]}  Bxd5 {[%clk 0:02:19]} 22. cxd5 {[%clk 0:01:40]}  Rc8 {[%clk 0:02:17]} 23. Qe2 {[%clk 0:01:36]}  Rc3 {[%clk 0:02:13]} 24. hxg6 {[%clk 0:01:33]}  hxg6 {[%clk 0:02:12]} 25. Rfd1 {[%clk 0:01:29]}  Qb6 {[%clk 0:02:07]} 26. Bh3 {[%clk 0:01:22]}  Rxg3+ {[%clk 0:02:06]} 27. Kh2 {[%clk 0:01:21]}  Rc3 {[%clk 0:01:54]} 28. Rd3 {[%clk 0:01:16]}  Rxd3 {[%clk 0:01:47]} 29. Qxd3 {[%clk 0:01:15]}  Qxf2+ {[%clk 0:01:47]} 30. Kh1 {[%clk 0:01:16]}  Bf4 {[%clk 0:01:45]} 0-1


[Site "https://www.chess.com"]

[Event "Titled Tuesday Blitz November 15 Late 2022"]
[White "Joubert, Dantelle"]
[Black "Toncheva, Nadya"]
[WhiteFideId "14310813"]
[BlackFideId "2924056"]
[WhiteElo "1507"]
[BlackElo "2101"]
[Result "0-1"]
[Round "04"]
[TimeControl "180+1"]
[Date "2022.11.16"]
[WhiteClock "0:00:09"]
[BlackClock "0:00:12"]

1. d4 {[%clk 0:03:00]}  d5 {[%clk 0:02:57]} 2. c4 {[%clk 0:03:00]}  dxc4 {[%clk 0:02:58]} 3. e3 {[%clk 0:03:00]}  Nf6 {[%clk 0:02:58]} 4. Bxc4 {[%clk 0:02:59]}  e6 {[%clk 0:02:59]} 5. Nf3 {[%clk 0:02:59]}  a6 {[%clk 0:02:58]} 6. O-O {[%clk 0:02:50]}  b5 {[%clk 0:02:58]} 7. Bb3 {[%clk 0:02:39]}  Bb7 {[%clk 0:02:58]} 8. Qe2 {[%clk 0:02:38]}  Nbd7 {[%clk 0:02:58]} 9. Rd1 {[%clk 0:02:35]}  c5 {[%clk 0:02:51]} 10. dxc5 {[%clk 0:02:31]}  Bxc5 {[%clk 0:02:50]} 11. Nbd2 {[%clk 0:02:19]}  O-O {[%clk 0:02:50]} 12. Nf1 {[%clk 0:02:18]}  Qe7 {[%clk 0:02:45]} 13. Ng3 {[%clk 0:02:04]}  Rfd8 {[%clk 0:02:38]} 14. Bd2 {[%clk 0:02:01]}  Nb6 {[%clk 0:02:36]} 15. Ba5 {[%clk 0:01:58]}  Rxd1+ {[%clk 0:02:19]} 16. Rxd1 {[%clk 0:01:58]}  Nbd5 {[%clk 0:02:17]} 17. a3 {[%clk 0:01:44]}  Rc8 {[%clk 0:02:14]} 18. Ne5 {[%clk 0:01:41]}  h6 {[%clk 0:02:00]} 19. Nd3 {[%clk 0:01:24]}  Ba7 {[%clk 0:01:42]} 20. e4 {[%clk 0:01:22]}  Nb6 {[%clk 0:01:26]} 21. Bb4 {[%clk 0:01:11]}  Qe8 {[%clk 0:01:19]} 22. Nc5 {[%clk 0:01:10]}  Ba8 {[%clk 0:00:56]} 23. Nxa6 {[%clk 0:00:51]}  Nc4 {[%clk 0:00:51]} 24. Bxc4 {[%clk 0:00:30]}  Rxc4 {[%clk 0:00:42]} 25. Bc3 {[%clk 0:00:30]}  Nxe4 {[%clk 0:00:37]} 26. Nxe4 {[%clk 0:00:27]}  Bxe4 {[%clk 0:00:31]} 27. Nb4 {[%clk 0:00:17]}  Qa8 {[%clk 0:00:20]} 28. Qf1 {[%clk 0:00:13]}  Kh7 {[%clk 0:00:17]} 29. Be5 {[%clk 0:00:13]}  h5 {[%clk 0:00:15]} 30. b3 {[%clk 0:00:11]}  Rc8 {[%clk 0:00:14]} 31. Kh1 {[%clk 0:00:11]}  Rd8 {[%clk 0:00:13]} 32. f3 {[%clk 0:00:10]}  Rxd1 {[%clk 0:00:12]} 33. Qxd1 {[%clk 0:00:10]}  Bg6 {[%clk 0:00:12]} 34. Qd4 {[%clk 0:00:10]}  Bxd4 {[%clk 0:00:12]} 35. Bxd4 {[%clk 0:00:09]}  Qxa3 {[%clk 0:00:12]} 0-1


[Site "https://www.chess.com"]

[Event "Titled Tuesday Blitz November 15 Late 2022"]
[White "Kamsky, Gata"]
[Black "He, Samuel"]
[WhiteFideId "2000024"]
[BlackFideId "2087235"]
[WhiteElo "2666"]
[BlackElo "2605"]
[Result "1-0"]
[Round "04"]
[TimeControl "180+1"]
[Date "2022.11.16"]
[WhiteClock "0:00:11"]
[BlackClock "0:00:01"]

1. e4 {[%clk 0:03:00]}  e5 {[%clk 0:02:58]} 2. Nf3 {[%clk 0:02:59]}  Nc6 {[%clk 0:02:58]} 3. Bb5 {[%clk 0:02:58]}  Nf6 {[%clk 0:02:58]} 4. O-O {[%clk 0:02:57]}  Nxe4 {[%clk 0:02:59]} 5. d4 {[%clk 0:02:56]}  Nd6 {[%clk 0:02:59]} 6. Bxc6 {[%clk 0:02:56]}  dxc6 {[%clk 0:03:00]} 7. dxe5 {[%clk 0:02:56]}  Nf5 {[%clk 0:03:00]} 8. Qxd8+ {[%clk 0:02:55]}  Kxd8 {[%clk 0:02:58]} 9. Rd1+ {[%clk 0:02:55]}  Ke8 {[%clk 0:02:56]} 10. Nc3 {[%clk 0:02:56]}  Ne7 {[%clk 0:02:55]} 11. h3 {[%clk 0:02:55]}  Ng6 {[%clk 0:02:42]} 12. b3 {[%clk 0:02:38]}  Be7 {[%clk 0:02:25]} 13. Bb2 {[%clk 0:02:34]}  h5 {[%clk 0:02:15]} 14. Ne4 {[%clk 0:02:20]}  Nf4 {[%clk 0:01:50]} 15. c4 {[%clk 0:02:01]}  Bf5 {[%clk 0:01:37]} 16. Ng3 {[%clk 0:01:54]}  Bg6 {[%clk 0:01:34]} 17. Nd4 {[%clk 0:01:46]}  Ne6 {[%clk 0:01:23]} 18. Ndf5 {[%clk 0:01:29]}  h4 {[%clk 0:01:08]} 19. Nxe7 {[%clk 0:01:27]}  hxg3 {[%clk 0:00:52]} 20. Nxg6 {[%clk 0:01:27]}  gxf2+ {[%clk 0:00:52]} 21. Kxf2 {[%clk 0:01:27]}  fxg6 {[%clk 0:00:52]} 22. Ke3 {[%clk 0:01:20]}  Rh4 {[%clk 0:00:47]} 23. Rf1 {[%clk 0:01:17]}  Ke7 {[%clk 0:00:44]} 24. Rad1 {[%clk 0:01:15]}  c5 {[%clk 0:00:39]} 25. Rf3 {[%clk 0:01:08]}  a5 {[%clk 0:00:37]} 26. a4 {[%clk 0:01:06]}  g5 {[%clk 0:00:36]} 27. Rdf1 {[%clk 0:01:01]}  Rf4 {[%clk 0:00:34]} 28. Rxf4 {[%clk 0:00:59]}  gxf4+ {[%clk 0:00:34]} 29. Ke4 {[%clk 0:00:58]}  g6 {[%clk 0:00:30]} 30. Bc3 {[%clk 0:00:53]}  b6 {[%clk 0:00:30]} 31. Rd1 {[%clk 0:00:51]}  Rf8 {[%clk 0:00:28]} 32. Kf3 {[%clk 0:00:51]}  Rf5 {[%clk 0:00:26]} 33. h4 {[%clk 0:00:48]}  Rh5 {[%clk 0:00:25]} 34. Kg4 {[%clk 0:00:47]}  Rf5 {[%clk 0:00:23]} 35. Rd3 {[%clk 0:00:47]}  Rh5 {[%clk 0:00:23]} 36. Bd2 {[%clk 0:00:40]}  Rf5 {[%clk 0:00:23]} 37. Rf3 {[%clk 0:00:31]}  Rxe5 {[%clk 0:00:22]} 38. Bxf4 {[%clk 0:00:31]}  Re4 {[%clk 0:00:21]} 39. g3 {[%clk 0:00:29]}  Nd4 {[%clk 0:00:17]} 40. Rd3 {[%clk 0:00:23]}  Kf6 {[%clk 0:00:16]} 41. Kh3 {[%clk 0:00:21]}  Ne6 {[%clk 0:00:14]} 42. Bh6 {[%clk 0:00:19]}  Nd4 {[%clk 0:00:11]} 43. g4 {[%clk 0:00:19]}  Re2 {[%clk 0:00:08]} 44. Bf4 {[%clk 0:00:19]}  Ne6 {[%clk 0:00:07]} 45. Rf3 {[%clk 0:00:17]}  Nd4 {[%clk 0:00:04]} 46. Rd3 {[%clk 0:00:15]}  Ne6 {[%clk 0:00:04]} 47. Bg3 {[%clk 0:00:15]}  Rb2 {[%clk 0:00:03]} 48. Rf3+ {[%clk 0:00:15]}  Ke7 {[%clk 0:00:03]} 49. Be5 {[%clk 0:00:15]}  Nd4 {[%clk 0:00:03]} 50. Re3 {[%clk 0:00:14]}  Kd7 {[%clk 0:00:03]} 51. Rd3 {[%clk 0:00:12]}  Rxb3 {[%clk 0:00:03]} 52. Rxb3 {[%clk 0:00:12]}  Nxb3 {[%clk 0:00:03]} 53. h5 {[%clk 0:00:12]}  gxh5 {[%clk 0:00:04]} 54. gxh5 {[%clk 0:00:12]}  Ke6 {[%clk 0:00:05]} 55. h6 {[%clk 0:00:13]}  Kxe5 {[%clk 0:00:03]} 56. h7 {[%clk 0:00:13]}  Kd4 {[%clk 0:00:04]} 57. h8=Q+ {[%clk 0:00:13]}  Kxc4 {[%clk 0:00:05]} 58. Qc8 {[%clk 0:00:12]}  c6 {[%clk 0:00:05]} 59. Qc7 {[%clk 0:00:12]}  b5 {[%clk 0:00:04]} 60. Qf4+ {[%clk 0:00:12]}  Nd4 {[%clk 0:00:04]} 61. Qd2 {[%clk 0:00:11]}  b4 {[%clk 0:00:03]} 62. Qc1+ {[%clk 0:00:12]}  Kb3 {[%clk 0:00:04]} 63. Qxc5 {[%clk 0:00:11]}  Nc2 {[%clk 0:00:03]} 64. Qxa5 {[%clk 0:00:12]}  Nd4 {[%clk 0:00:03]} 65. Qc5 {[%clk 0:00:11]}  Nf3 {[%clk 0:00:01]} 66. a5 {[%clk 0:00:11]} 1-0


[Site "https://www.chess.com"]